fUST/lending_fUST_20260304
["ID","MTS","AMOUNT","RATE_DAILY","PERIOD"]
[407660996,1772623839840,-500.0,0.00010958,2]
[407660997,1772623839849,-500.0,0.00010958,2]
[407660998,1772623839859,-512.1,0.00010958,2]
[407660999,1772623839869,-530.65,0.00010958,2]
[407661000,1772623839878,-659.75,0.00010958,2]
[407661001,1772623839887,-500.0,0.00010958,2]
[407661002,1772623839896,-509.68,0.00010958,2]
[407661003,1772623839906,-500.0,0.00010958,2]
[407661004,1772623839915,-711.68,0.00010958,2]
[407661005,1772623839924,-500.0,0.00010958,2]
[407661006,1772623839933,-500.0,0.00010958,2]
[407661007,1772623839943,-500.0,0.00010958,2]
[407661009,1772623839952,-1726.07,0.00010958,2]
[407661010,1772623839961,-500.0,0.00010958,2]
[407661011,1772623839970,-500.0,0.00010958,2]
[407661012,1772623839980,-501.62125214,0.00010958,2]
[407661013,1772623839989,-500.0,0.00010958,2]
[407661014,1772623839999,-766.03,0.00010958,2]
[407661015,1772623840009,-500.0,0.00010958,2]
[407661016,1772623840019,-500.0,0.00010958,2]
[407661018,1772623840030,-1130.87,0.00010958,2]
[407661019,1772623840040,-623.63,0.00010958,2]
[407661020,1772623840051,-1486.85,0.00010958,2]
[407661021,1772623840061,-1004.59,0.00010958,2]
[407661022,1772623840070,-500.0,0.00010958,2]
[407661023,1772623840079,-500.0,0.00010958,2]
[407661024,1772623840088,-500.0,0.00010958,2]
[407661025,1772623840098,-500.0,0.00010958,2]
[407661026,1772623840107,-500.0,0.00010958,2]
[407661027,1772623840118,-998.23,0.00010958,2]
[407661028,1772623840128,-500.0,0.00010958,2]
[407661029,1772623840139,-345.855672,0.00010958,2]
[407661030,1772623840154,-572.260004,0.00010958,2]
[407661033,1772623840884,-378.404324,0.00010958,2]
[407661034,1772623840895,-500.0,0.00010958,2]
[407661035,1772623840906,-500.0,0.00010958,2]
[407661036,1772623840915,-500.0,0.00010958,2]
[407661037,1772623840924,-500.0,0.00010958,2]
[407661038,1772623840932,-500.0,0.00010958,2]
[407661039,1772623840941,-500.0,0.00010958,2]
[407661040,1772623840951,-500.0,0.00010958,2]
[407661041,1772623840960,-500.0,0.00010958,2]
[407661042,1772623840969,-500.0,0.00010958,2]
[407661043,1772623840979,-617.88,0.00010958,2]
[407661044,1772623840989,-500.0,0.00010958,2]
[407661045,1772623840999,-500.0,0.00010958,2]
[407661046,1772623841008,-500.0,0.00010958,2]
[407661047,1772623841019,-910.53,0.00010958,2]
[407661048,1772623841029,-500.0,0.00010958,2]
[407661049,1772623841039,-500.0,0.00010958,2]
[407661050,1772623841049,-500.0,0.00010958,2]
[407661051,1772623841059,-1290.47,0.00010958,2]
[407661052,1772623841069,-57.27015622,0.00010958,2]
[407661053,1772623841082,-442.72984378,0.00010958,2]
[407661054,1772623841092,-500.0,0.00010958,2]
[407661055,1772623841102,-500.0,0.00010958,2]
[407661056,1772623841111,-500.0,0.00010958,2]
[407661057,1772623841120,-500.0,0.00010958,2]
[407661058,1772623841131,-802.61,0.00010958,2]
[407661059,1772623841141,-500.0,0.00010958,2]
[407661060,1772623841152,-500.0,0.00010958,2]
[407661061,1772623841161,-1127.52,0.00010958,2]
[407661062,1772623841170,-519.29,0.00010958,2]
[407661063,1772623841179,-477.4409272,0.00010958,2]
[407661064,1772623841188,-500.0,0.00010958,2]
[407661065,1772623841198,-593.65,0.00010958,2]
[407661066,1772623841207,-500.0,0.00010958,2]
[407661067,1772623841216,-500.0,0.00010958,2]
[407661068,1772623841225,-500.0,0.00010958,2]
[407661069,1772623841235,-500.0,0.00010958,2]
[407661070,1772623841244,-548.13,0.00010958,2]
[407661071,1772623841253,-500.0,0.00010958,2]
[407661072,1772623841262,-500.0,0.00010958,2]
[407661073,1772623841272,-500.0,0.00010958,2]
[407661074,1772623841281,-662.15,0.00010958,2]
[407661075,1772623841291,-515.70897026,0.00010958,2]
[407661076,1772623841300,-694.38,0.00010958,2]
[407661077,1772623841310,-500.0,0.00010958,2]
[407661078,1772623841320,-500.0,0.00010958,2]
[407661079,1772623841329,-500.0,0.00010958,2]
[407661080,1772623841339,-592.36,0.00010958,2]
[407661081,1772623841348,-500.0,0.00010958,2]
[407661082,1772623841357,-500.0,0.00010958,2]
[407661083,1772623841368,-500.0,0.00010958,2]
[407661084,1772623841377,-500.0,0.00010958,2]
[407661085,1772623841387,-500.0,0.00010958,2]
[407661086,1772623841396,-500.0,0.00010958,2]
[407661087,1772623841405,-500.0,0.00010958,2]
[407661088,1772623841415,-830.04,0.00010958,2]
[407661089,1772623841424,-500.0,0.00010958,2]
[407661090,1772623841433,-500.0,0.00010958,2]
[407661091,1772623841443,-500.0,0.00010958,2]
[407661092,1772623841452,-500.0,0.00010958,2]
[407661093,1772623841462,-2835.59,0.00010958,2]
[407661094,1772623841471,-500.0,0.00010958,2]
[407661095,1772623841481,-500.0,0.00010958,2]
[407661096,1772623841491,-1105.57,0.00010958,2]
[407661097,1772623841500,-500.0,0.00010958,2]
[407661098,1772623841509,-589.98,0.00010958,2]
[407661099,1772623841519,-349.81925996,0.00010958,2]
[407661108,1772623843471,-293.71074004,0.00010958,2]
[407661109,1772623843483,-561.28,0.00010958,2]
[407661110,1772623843493,-1443.32,0.00010958,2]
[407661111,1772623843502,-762.21,0.00010958,2]
[407661112,1772623843512,-1669.97,0.00010958,2]
[407661114,1772623843521,-593.55,0.00010958,2]
[407661115,1772623843531,-258.30373539,0.00010958,2]
[407661122,1772623846425,-1872.93,0.00010848,2]
[407661123,1772623846480,-749.87622439,0.00010848,2]
[407661124,1772623846490,-241.69626461,0.00010958,2]
[407661125,1772623846500,-1117.69,0.00010958,2]
[407661126,1772623846510,-598.3,0.00010958,2]
[407661127,1772623846520,-500.0,0.00010958,2]
[407661128,1772623846530,-500.0,0.00010958,2]
[407661129,1772623846540,-440.29586295,0.00010958,2]
[407661130,1772623846550,-500.0,0.00010958,2]
[407661131,1772623846559,-500.0,0.00010958,2]
[407661132,1772623846569,-500.0,0.00010958,2]
[407661133,1772623846579,-500.0,0.00010958,2]
[407661134,1772623846588,-500.0,0.00010958,2]
[407661135,1772623846598,-500.0,0.00010958,2]
[407661136,1772623846608,-500.0,0.00010958,2]
[407661137,1772623846618,-500.0,0.00010958,2]
[407661138,1772623846628,-500.0,0.00010958,2]
[407661139,1772623846638,-500.0,0.00010958,2]
[407661140,1772623846649,-671.71,0.00010958,2]
[407661141,1772623846659,-500.0,0.00010958,2]
[407661142,1772623846668,-205.52849043,0.00010958,2]
[407661143,1772623846678,-4048.46179941,0.00010958,2]
[407661168,1772623913442,1788.0,7e-05,2]
[407661170,1772625003754,189.38,6.9e-05,2]
[407661195,1772625032435,-5000.0,9.466e-05,2]
[407661197,1772625032444,-680.50130229,9.562e-05,2]
[407661241,1772625038610,-5000.0,9.466e-05,2]
[407661243,1772625038627,-1444.62695841,9.562e-05,2]
[407661247,1772625038637,-555.0,9.659e-05,2]
[407661248,1772625038646,-420.63691362,9.708e-05,2]
[407661250,1772625038655,-168.65922372,9.89e-05,2]
[407661252,1772625038664,-300.0,9.999e-05,2]
[407661254,1772625038673,-204.18216782,9.999e-05,2]
[407661256,1772625038681,-500.0,9.999e-05,2]
[407661258,1772625038691,-556.45965853,9.999e-05,2]
[407661260,1772625038700,-342.12585006,9.999e-05,2]
[407661262,1772625038710,-10545.53560699,0.0001,2]
[407661296,1772625043833,-500.0,9.999e-05,2]
[407661297,1772625043843,-500.0,9.999e-05,2]
[407661298,1772625043853,-25980.46439301,0.0001,2]
[407661306,1772625044166,-4681.4619721,0.0001,2]
[407661321,1772625046796,-500.0,9.999e-05,2]
[407661322,1772625046807,-3500.0,0.0001,2]
[407661323,1772625046819,-851.86,0.0001,2]
[407661324,1772625046830,-880.60659941,0.0001,2]
[407661325,1772625602466,189.36,6.9e-05,2]
[407661326,1772625933593,8399.0,9e-05,3]
[407661327,1772625951787,0.09643045,8.5e-05,3]
[407661328,1772625951812,9999.90356955,8.5e-05,3]
[407661331,1772626199198,5869.4333942,7e-05,2]
[407661332,1772626202800,5000.0,6.9e-05,2]
[407661333,1772626207099,150.0,0.0001,10]
[407661334,1772626207444,156.96,0.0001,12]
[407661335,1772626207916,156.96,0.0001,13]
[407661336,1772626208085,163.95,0.0001,14]
[407661337,1772626225372,5000.0,6.9e-05,2]
[407661375,1772626231763,151.0,0.0001,10]
[407661382,1772626231833,-327.0,7e-05,2]
[407661384,1772626231845,-3803.5666058,7e-05,2]
[407661386,1772626231854,-519.0,7e-05,2]
[407661388,1772626231863,-1200.0,8.562e-05,2]
[407661389,1772626231873,-4119.39340059,8.563e-05,2]
[407661390,1772626231883,-300.0,8.65e-05,2]
[407661391,1772626231893,-300.0,8.732e-05,2]
[407661392,1772626231903,-300.0,8.732e-05,2]
[407661393,1772626231913,-300.0,8.732e-05,2]
[407661394,1772626231924,-300.0,8.732e-05,2]
[407661395,1772626231935,-300.0,8.732e-05,2]
[407661396,1772626231945,-300.0,8.732e-05,2]
[407661397,1772626231954,-300.0,8.732e-05,2]
[407661398,1772626231963,-300.0,8.732e-05,2]
[407661399,1772626231973,-300.0,8.732e-05,2]
[407661401,1772626231983,-300.0,8.732e-05,2]
[407661403,1772626231993,-300.0,8.732e-05,2]
[407661404,1772626232003,-300.0,8.732e-05,2]
[407661405,1772626232012,-300.0,8.732e-05,2]
[407661406,1772626232022,-299.6784826,8.732e-05,2]
[407661407,1772626232036,-0.3215174,8.732e-05,2]
[407661408,1772626232047,-300.0,8.732e-05,2]
[407661409,1772626232058,-7024.2381276,8.732e-05,2]
[407661410,1772626232069,-300.0,8.863e-05,2]
[407661411,1772626232078,-300.0,8.863e-05,2]
[407661412,1772626232087,-427.77100402,8.907e-05,2]
[407661413,1772626232096,-200.0,8.95e-05,2]
[407661414,1772626232106,-160.16377404,9.283e-05,2]
[407661415,1772626232116,-500.0,9.414e-05,2]
[407661416,1772626232127,-500.0,9.414e-05,2]
[407661417,1772626232137,-158.11230197,9.414e-05,2]
[407661418,1772626232147,-420.0,9.749e-05,2]
[407661419,1772626232156,-214.22139552,9.89e-05,2]
[407661420,1772626232166,-178.24264397,9.89e-05,2]
[407661421,1772626232178,-66.58180805,9.89e-05,2]
[407661422,1772626232188,-382.15566808,9.89e-05,2]
[407661423,1772626232197,-327.94380071,9.998e-05,2]
[407661424,1772626232208,-172.05619929,9.998e-05,2]
[407661425,1772626232218,-500.0,9.998e-05,2]
[407661426,1772626232227,-407.77301748,9.998e-05,2]
[407661427,1772626232237,-8488.83107532,0.0001,2]
[407661428,1772626232248,-1071.458,0.0001,2]
[407661462,1772626237929,-4035.17490071,0.0001,2]
[407661464,1772626237941,-3020.0118915,0.0001,2]
[407661523,1772626242872,-920.34923436,0.0001,2]
[407661526,1772626242931,-2671.92781205,0.0001,2]
[407661527,1772626242981,-9848.56580408,0.0001,2]
[407661539,1772626245728,-2111.92703589,0.0001,2]
[407661540,1772626245783,-2021.25087948,0.0001,2]
[407661541,1772626246077,-75980.56504944,0.0001,2]
[407661542,1772626246086,-1502.90608696,0.0001,2]
[407661543,1772626246096,-290.77766756,0.0001,2]
[407661544,1772626246105,-7446.56,0.0001,2]
[407661545,1772626246115,-5036.79721278,0.00010094,2]
[407661546,1772626246124,-1480.0235647,0.00010167,2]
[407661547,1772626246134,-1808.3910487,0.00010167,2]
[407661548,1772626246143,-12581.32624305,0.00010194,2]
[407661549,1772626246153,-600.0,0.00010197,2]
[407661550,1772626246163,-6256.2419317,0.000102,2]
[407661551,1772626246173,-14303.87075726,0.00010294,2]
[407661552,1772626246182,-500.0,0.00010409,2]
[407661553,1772626246192,-151.0,0.00010409,2]
[407661554,1772626246202,-151.0,0.00010409,2]
[407661555,1772626246212,-152.71794829,0.00010409,2]
[407661556,1772626246222,-168.3888056,0.00010409,2]
[407661557,1772626246232,-174.61919141,0.00010409,2]
[407661558,1772626246241,-181.08010149,0.00010409,2]
[407661559,1772626246253,-187.78006525,0.00010409,2]
[407661560,1772626246262,-194.72792766,0.00010409,2]
[407661561,1772626246272,-201.93286099,0.00010409,2]
[407661562,1772626246281,-209.40437684,0.00010409,2]
[407661563,1772626246295,-217.15233878,0.00010409,2]
[407661564,1772626246305,-225.18697532,0.00010409,2]
[407661565,1772626246315,-233.51889341,0.00010409,2]
[407661566,1772626246324,-242.15909246,0.00010409,2]
[407661567,1772626246334,-251.11897888,0.00010409,2]
[407661568,1772626246343,-260.4103811,0.00010409,2]
[407661569,1772626246354,-270.0455652,0.00010409,2]
[407661570,1772626246363,-557.5788265,0.00010409,2]
[407661571,1772626246373,-280.03725112,0.00010409,2]
[407661572,1772626246383,-2230.315306,0.00010409,2]
[407661573,1772626246392,-235.84271521,0.00010409,2]
[407661574,1772626246402,-172.73640666,0.00010465,2]
[407661575,1772626246412,-20125.85527331,0.00010494,2]
[407661576,1772626246422,-202.38,0.00010583,2]
[407661577,1772626246432,-150.0,0.00010678,2]
[407661578,1772626246442,-391.66878295,0.00010683,2]
[407661579,1772626246452,-587.0,0.00010724,2]
[407661580,1772626246464,-264.46220357,0.00010733,2]
[407661581,1772626246475,-150.0,0.00010742,2]
[407661582,1772626246484,-177.21137674,0.00010809,2]
[407661583,1772626246495,-3000.0,0.000109,30]
[407661584,1772626246506,-504.76978474,0.00010907,2]
[407661585,1772626246517,-3000.0,0.0001091,30]
[407661586,1772626246526,-3000.0,0.0001092,30]
[407661587,1772626246537,-3000.0,0.0001093,30]
[407661588,1772626246547,-3000.0,0.0001094,30]
[407661589,1772626246556,-1162.7021235,0.0001095,2]
[407661590,1772626246567,-1190.26911068,0.0001095,30]
[407661592,1772626802477,182.82,6.9e-05,2]
[407661594,1772627164707,153.0,4.3e-07,2]
[407661595,1772627165921,153.0,4.3e-07,2]
[407661596,1772627167032,153.0,4.3e-07,2]
[407661597,1772627168140,153.0,4.3e-07,2]
[407661598,1772627169177,153.0,4.3e-07,2]
[407661599,1772627171431,153.0,4.3e-07,2]
[407661600,1772627402566,174.8,6.9e-05,2]
[407661624,1772627431878,-785.43526066,7.524e-05,2]
[407661626,1772627431891,-1025.78290777,7.524e-05,2]
[407661923,1772627438146,-3188.78183157,7.524e-05,2]
[407661924,1772627438157,-174.8,7.6e-05,2]
[407661925,1772627438167,-2472.88600522,9.659e-05,2]
[407661926,1772627438176,-411.30515525,9.708e-05,2]
[407661927,1772627438186,-300.0,0.00010408,2]
[407661928,1772627438196,-300.0,0.00010408,2]
[407661929,1772627438206,-300.0,0.00010408,2]
[407661930,1772627438215,-2230.315306,0.00010409,2]
[407661931,1772627438225,-160.0,0.000105,2]
[407661932,1772627438235,-162.0,0.000106,2]
[407661933,1772627438245,-163.55330283,0.000106,2]
[407661934,1772627438254,-1473.19474389,0.000106,2]
[407661935,1772627438263,-150.0,0.00010684,2]
[407661936,1772627438273,-150.0,0.00010684,2]
[407661937,1772627438282,-169.01696297,0.00010739,2]
[407661938,1772627438291,-183.696166,0.00010768,2]
[407661939,1772627438301,-572.00135264,0.000108,2]
[407661940,1772627438310,-897.36369589,0.000108,2]
[407661941,1772627438320,-318.73088444,0.000108,2]
[407661942,1772627438329,-1809.73088932,0.0001095,30]
[407661943,1772627438338,-557.5788265,0.00010951,2]
[407661944,1772627438348,-2312.83697232,0.00010957,2]
[407661945,1772627438357,-414.10379349,0.00010957,2]
[407661946,1772627438366,-251.89620651,0.00010957,2]
[407661947,1772627438376,-228.243362,0.00010958,2]
[407661948,1772627438386,-500.0,0.00010958,2]
[407661949,1772627438395,-500.0,0.00010958,2]
[407661950,1772627438405,-500.0,0.00010958,2]
[407661951,1772627438415,-789.1,0.00010958,2]
[407661952,1772627438425,-500.0,0.00010958,2]
[407661953,1772627438434,-508.54,0.00010958,2]
[407661954,1772627438443,-638.55,0.00010958,2]
[407661955,1772627438453,-632.26,0.00010958,2]
[407661956,1772627438463,-500.0,0.00010958,2]
[407661957,1772627438472,-500.0,0.00010958,2]
[407661958,1772627438482,-1065.64,0.00010958,2]
[407661959,1772627438491,-517.21,0.00010958,2]
[407661960,1772627438500,-500.0,0.00010958,2]
[407661961,1772627438510,-500.0,0.00010958,2]
[407661962,1772627438519,-500.0,0.00010958,2]
[407661963,1772627438528,-761.28,0.00010958,2]
[407661964,1772627438537,-500.0,0.00010958,2]
[407661965,1772627438547,-500.0,0.00010958,2]
[407661966,1772627438556,-500.0,0.00010958,2]
[407661967,1772627438565,-500.0,0.00010958,2]
[407661968,1772627438574,-500.0,0.00010958,2]
[407661969,1772627438584,-500.0,0.00010958,2]
[407661970,1772627438593,-500.0,0.00010958,2]
[407661971,1772627438602,-1083.76,0.00010958,2]
[407661972,1772627438612,-676.01,0.00010958,2]
[407661973,1772627438621,-500.0,0.00010958,2]
[407661974,1772627438630,-962.73,0.00010958,2]
[407661975,1772627438639,-1743.29,0.00010958,2]
[407661976,1772627438648,-500.0,0.00010958,2]
[407661977,1772627438657,-500.0,0.00010958,2]
[407661978,1772627438667,-500.0,0.00010958,2]
[407661979,1772627438676,-500.0,0.00010958,2]
[407661980,1772627438685,-597.64,0.00010958,2]
[407661981,1772627438694,-500.0,0.00010958,2]
[407661982,1772627438703,-643.8,0.00010958,2]
[407661983,1772627438712,-500.0,0.00010958,2]
[407661984,1772627438721,-956.64,0.00010958,2]
[407661985,1772627438731,-500.0,0.00010958,2]
[407661986,1772627438740,-500.0,0.00010958,2]
[407661987,1772627438749,-1424.9,0.00010958,2]
[407661988,1772627438759,-500.0,0.00010958,2]
[407661989,1772627438768,-500.0,0.00010958,2]
[407661990,1772627438777,-500.0,0.00010958,2]
[407661991,1772627438787,-1236.7,0.00010958,2]
[407661992,1772627438796,-426.87234352,0.00010958,2]
[407661993,1772627438806,-500.0,0.00010958,2]
[407661994,1772627438816,-500.0,0.00010958,2]
[407661995,1772627438826,-500.0,0.00010958,2]
[407661996,1772627438835,-500.0,0.00010958,2]
[407661997,1772627438844,-872.59,0.00010958,2]
[407661998,1772627438853,-500.0,0.00010958,2]
[407661999,1772627438863,-1242.49,0.00010958,2]
[407662000,1772627438872,-160.31297609,0.00010958,2]
[407662001,1772627438881,-1138.67,0.00010958,2]
[407662002,1772627438891,-500.0,0.00010958,2]
[407662003,1772627438901,-500.0,0.00010958,2]
[407662004,1772627438913,-500.0,0.00010958,2]
[407662005,1772627438923,-500.0,0.00010958,2]
[407662006,1772627438932,-622.72,0.00010958,2]
[407662007,1772627438941,-500.0,0.00010958,2]
[407662008,1772627438950,-500.0,0.00010958,2]
[407662009,1772627438961,-500.0,0.00010958,2]
[407662010,1772627438970,-500.0,0.00010958,2]
[407662011,1772627438979,-500.0,0.00010958,2]
[407662012,1772627438991,-500.0,0.00010958,2]
[407662013,1772627439000,-557.91353653,0.00010958,2]
[407662014,1772627439010,-500.0,0.00010958,2]
[407662015,1772627439019,-500.0,0.00010958,2]
[407662016,1772627439028,-500.0,0.00010958,2]
[407662017,1772627439038,-500.0,0.00010958,2]
[407662018,1772627439047,-500.0,0.00010958,2]
[407662019,1772627439056,-500.0,0.00010958,2]
[407662020,1772627439067,-500.0,0.00010958,2]
[407662021,1772627439076,-500.0,0.00010958,2]
[407662022,1772627439086,-500.0,0.00010958,2]
[407662023,1772627439095,-808.89,0.00010958,2]
[407662024,1772627439104,-500.0,0.00010958,2]
[407662025,1772627439114,-500.0,0.00010958,2]
[407662026,1772627439123,-500.0,0.00010958,2]
[407662027,1772627439132,-500.0,0.00010958,2]
[407662028,1772627439141,-500.0,0.00010958,2]
[407662029,1772627439151,-500.0,0.00010958,2]
[407662030,1772627439160,-500.0,0.00010958,2]
[407662031,1772627439169,-500.0,0.00010958,2]
[407662032,1772627439178,-634.56,0.00010958,2]
[407662033,1772627439188,-500.0,0.00010958,2]
[407662034,1772627439198,-500.0,0.00010958,2]
[407662035,1772627439207,-795.46,0.00010958,2]
[407662036,1772627439217,-567.68,0.00010958,2]
[407662037,1772627439226,-1383.18,0.00010958,2]
[407662038,1772627439239,-543.69,0.00010958,2]
[407662039,1772627439249,-665.44,0.00010958,2]
[407662040,1772627439258,-500.0,0.00010958,2]
[407662041,1772627439267,-373.04740575,0.00010958,2]
[407662042,1772627439277,-500.0,0.00010958,2]
[407662043,1772627439287,-500.0,0.00010958,2]
[407662044,1772627439296,-500.0,0.00010958,2]
[407662045,1772627439305,-500.0,0.00010958,2]
[407662046,1772627439315,-1071.12,0.00010958,2]
[407662047,1772627439324,-500.0,0.00010958,2]
[407662048,1772627439334,-500.0,0.00010958,2]
[407662049,1772627439343,-506.38,0.00010958,2]
[407662050,1772627439352,-500.0,0.00010958,2]
[407662051,1772627439362,-1600.39,0.00010958,2]
[407662052,1772627439372,-2717.44,0.00010958,2]
[407662053,1772627439381,-500.0,0.00010958,2]
[407662054,1772627439390,-573.37,0.00010958,2]
[407662055,1772627439400,-730.45,0.00010958,2]
[407662056,1772627439409,-138.43415112,0.00010958,2]
[407662058,1772627439437,-379.64897681,0.00010958,2]
[407662069,1772627440538,-541.42687207,0.00010958,2]
[407662070,1772627440548,-918.66,0.00010958,2]
[407662071,1772627440557,-500.0,0.00010958,2]
[407662072,1772627440567,-473.05499833,0.00010958,2]
[407662073,1772627440597,-26.94500167,0.00010958,2]
[407662074,1772627440607,-500.0,0.00010958,2]
[407662075,1772627440616,-537.9,0.00010958,2]
[407662076,1772627440625,-500.0,0.00010958,2]
[407662077,1772627440634,-731.33,0.00010958,2]
[407662078,1772627440644,-3796.47,0.00010958,2]
[407662079,1772627440665,-500.0,0.00010958,2]
[407662080,1772627440675,-500.0,0.00010958,2]
[407662081,1772627440685,-500.0,0.00010958,2]
[407662082,1772627440695,-500.0,0.00010958,2]
[407662083,1772627440706,-500.0,0.00010958,2]
[407662084,1772627440716,-500.0,0.00010958,2]
[407662085,1772627440726,-500.0,0.00010958,2]
[407662086,1772627440736,-500.0,0.00010958,2]
[407662087,1772627440747,-1252.89,0.00010958,2]
[407662088,1772627440758,-500.0,0.00010958,2]
[407662089,1772627440767,-643.72,0.00010958,2]
[407662090,1772627440777,-5122.39,0.00010958,2]
[407662091,1772627440787,-500.0,0.00010958,2]
[407662092,1772627440796,-500.0,0.00010958,2]
[407662093,1772627440806,-697.9,0.00010958,2]
[407662094,1772627440816,-709.96,0.00010958,2]
[407662095,1772627440826,-500.0,0.00010958,2]
[407662096,1772627440836,-722.82,0.00010958,2]
[407662097,1772627440846,-500.0,0.00010958,2]
[407662098,1772627440856,-583.53,0.00010958,2]
[407662099,1772627440866,-882.33,0.00010958,2]
[407662100,1772627440877,-500.0,0.00010958,2]
[407662101,1772627440887,-500.0,0.00010958,2]
[407662102,1772627440899,-935.34,0.00010958,2]
[407662103,1772627440913,-1497.01,0.00010958,2]
[407662104,1772627440922,-500.0,0.00010958,2]
[407662105,1772627440932,-1242.78848578,0.00010958,2]
[407662106,1772627440947,-539.98151422,0.00010958,2]
[407662107,1772627440959,-500.0,0.00010958,2]
[407662108,1772627440969,-1019.21,0.00010958,2]
[407662109,1772627440979,-500.0,0.00010958,2]
[407662110,1772627440990,-753.91,0.00010958,2]
[407662111,1772627441000,-1291.67287382,0.00010958,2]
[407662112,1772627441012,-1379.26712618,0.00010958,2]
[407662113,1772627441022,-500.0,0.00010958,2]
[407662114,1772627441032,-500.0,0.00010958,2]
[407662115,1772627441042,-500.0,0.00010958,2]
[407662116,1772627441051,-2188.13,0.00010958,2]
[407662117,1772627441061,-500.0,0.00010958,2]
[407662118,1772627441070,-500.0,0.00010958,2]
[407662119,1772627441080,-151.0,0.00010958,2]
[407662120,1772627441089,-635.14,0.00010958,2]
[407662121,1772627441099,-500.0,0.00010958,2]
[407662122,1772627441109,-1249.27,0.00010958,2]
[407662123,1772627441119,-1018.81572355,0.00010958,2]
[407662143,1772627443723,-1299.71427645,0.00010958,2]
[407662144,1772627443733,-588.47,0.00010958,2]
[407662145,1772627443743,-890.43,0.00010958,2]
[407662146,1772627443753,-500.0,0.00010958,2]
[407662147,1772627443762,-651.26,0.00010958,2]
[407662148,1772627443772,-589.79,0.00010958,2]
[407662149,1772627443782,-500.0,0.00010958,2]
[407662150,1772627443791,-473.34966131,0.00010958,2]
[407662172,1772627445976,-595.85033869,0.00010958,2]
[407662174,1772627445986,-1572.6,0.00010958,2]
[407662176,1772627445995,-825.92,0.00010958,2]
[407662178,1772627446004,-500.0,0.00010958,2]
[407662180,1772627446013,-500.0,0.00010958,2]
[407662182,1772627446023,-1686.11,0.00010958,2]
[407662184,1772627446031,-1795.18,0.00010958,2]
[407662186,1772627446040,-500.0,0.00010958,2]
[407662188,1772627446049,-1044.45,0.00010958,2]
[407662190,1772627446058,-500.0,0.00010958,2]
[407662192,1772627446067,-500.0,0.00010958,2]
[407662194,1772627446076,-500.0,0.00010958,2]
[407662196,1772627446085,-500.0,0.00010958,2]
[407662198,1772627446094,-593.03,0.00010958,2]
[407662200,1772627446103,-500.0,0.00010958,2]
[407662202,1772627446112,-3703.46,0.00010958,2]
[407662204,1772627446121,-500.0,0.00010958,2]
[407662206,1772627446130,-1725.08433219,0.00010958,2]
[407662208,1772627446142,-277.9938802,0.00010958,2]
[407662237,1772627661386,438.05785631,0.000157,120]
[407662238,1772628003259,159.05,6.9e-05,2]
[407662239,1772628003432,159.05,6.9e-05,2]
[407662240,1772628025517,5000.0,6.9e-05,2]
[407662241,1772628047505,5000.0,6.9e-05,2]
[407662242,1772628069288,5000.0,6.9e-05,2]
[407662243,1772628077753,1212.57118219,6.9e-05,2]
[407662244,1772628093026,1011.58267723,6.9e-05,2]
[407662245,1772628137366,855.35063951,6.9e-05,2]
[407662246,1772628603481,390.46,6.9e-05,2]